bitfinex-derivatives/quotes_BTCF0:USTF0_20241125
["timestamp","ask_amount","ask_price","bid_price","bid_amount"]
[1732543468298,0.051165,97659.0,97658.0,0.3608]
[1732543469999,0.15484,97662.0,97661.0,0.051164]
[1732543470203,0.15484,97668.0,97661.0,0.051164]
[1732543470399,0.15484,97668.0,97666.0,0.3608]
[1732543471110,0.05116,97668.0,97666.0,0.3608]
[1732543471596,0.051163,97662.0,97661.0,0.002]
[1732543472001,0.051563,97662.0,97661.0,0.002]
[1732543473007,0.051563,97662.0,97661.0,0.02555237]
[1732543473205,0.051563,97662.0,97661.0,0.002]
[1732543474348,0.051175,97639.0,97632.0,0.3608]
[1732543474520,0.051175,97639.0,97638.0,0.00153605]
[1732543475214,0.051575,97639.0,97638.0,0.00153605]
[1732543479206,0.051575,97639.0,97632.0,0.3608]
[1732543479207,0.051178,97633.0,97632.0,0.3608]
[1732543479400,0.206018,97633.0,97632.0,0.3608]
[1732543479612,0.206418,97633.0,97632.0,0.3608]
[1732543482030,0.206418,97633.0,97618.0,0.3608]
[1732543482031,0.051183,97624.0,97618.0,0.3608]
[1732543482312,0.051183,97624.0,97614.0,0.05500926]
[1732543482313,0.15432,97623.0,97614.0,0.05500926]
[1732543482507,0.051188,97615.0,97614.0,0.05500926]
[1732543482710,0.051588,97615.0,97614.0,0.05500926]
[1732543485119,0.205908,97615.0,97614.0,0.05500926]
[1732543487615,0.0004,97615.0,97614.0,0.41580926]
[1732543487829,0.0326,97639.0,97614.0,0.72312926]
[1732543488116,0.051179,97631.0,97630.0,0.3608]
[1732543489214,0.051182,97627.0,97622.0,0.411984]
[1732543489527,0.051183,97624.0,97622.0,0.3608]
[1732543489948,0.03151,97623.0,97622.0,0.3608]
[1732543490321,0.03191,97623.0,97622.0,0.3608]
[1732543490509,0.03191,97623.0,97622.0,0.411984]
[1732543492419,0.03191,97623.0,97622.0,0.3608]
[1732543492622,0.083094,97623.0,97622.0,0.3608]
[1732543500719,0.105764,97623.0,97622.0,0.3608]
[1732543501378,0.00468,97623.0,97622.0,0.411984]
[1732543501522,0.051173,97643.0,97638.0,0.051176]
[1732543501833,0.051173,97643.0,97642.0,0.3608]
[1732543503228,0.051171,97647.0,97643.0,0.051173]
[1732543503522,0.031,97660.0,97646.0,0.051972]
[1732543503523,0.051169,97651.0,97646.0,0.051972]
[1732543503830,0.051169,97651.0,97650.0,0.3608]
[1732543504124,0.051169,97651.0,97650.0,0.3616]
[1732543504339,0.62776,97665.0,97655.0,0.051167]
[1732543504632,0.62776,97665.0,97650.0,0.3616]
[1732543504633,0.051169,97651.0,97650.0,0.0008]
[1732543504922,0.051174,97642.0,97641.0,0.3608]
[1732543506825,0.051174,97642.0,97641.0,0.38463164]
[1732543508722,0.0004,97651.0,97641.0,0.38463164]
[1732543508923,0.051169,97651.0,97650.0,0.3608]
[1732543509323,0.051167,97655.0,97652.0,0.051168]
[1732543509521,0.051167,97655.0,97654.0,0.051167]
[1732543509722,0.051167,97655.0,97654.0,0.052367]
[1732543510223,0.051167,97655.0,97654.0,0.0012]
[1732543510928,0.051167,97655.0,97654.0,0.052367]
[1732543511124,0.1584,97663.0,97654.0,0.0012]
[1732543511332,0.00052001,97665.0,97662.0,0.051163]
[1732543511532,0.051162,97665.0,97662.0,0.052363]
[1732543511825,0.051162,97665.0,97660.0,0.3608]
[1732543511826,0.051162,97665.0,97664.0,0.0012]
[1732543513831,0.209562,97665.0,97664.0,0.0012]
[1732543514730,0.516722,97665.0,97664.0,0.0012]
[1732543516130,0.209562,97665.0,97664.0,0.0012]
[1732543520230,0.209522,97665.0,97664.0,0.0012]
[1732543521738,0.209522,97665.0,97664.0,0.052362]
[1732543522131,0.209522,97665.0,97664.0,0.0012]
[1732543524147,0.209522,97665.0,97664.0,0.052362]
[1732543524330,0.051162,97665.0,97664.0,0.052362]
[1732543524936,0.051162,97665.0,97664.0,0.0012]
[1732543525937,0.051163,97663.0,97661.0,0.3608]
[1732543526127,0.051169,97651.0,97643.0,0.0308]
[1732543526332,0.209529,97651.0,97637.0,0.3608]
[1732543527339,0.209529,97651.0,97637.0,0.411976]
[1732543527541,0.051169,97651.0,97648.0,0.05117]
[1732543527738,0.209529,97651.0,97650.0,0.38458913]
[1732543534352,0.203609,97651.0,97650.0,0.38458913]
[1732543534554,0.203609,97651.0,97650.0,0.43575813]
[1732543534941,0.051169,97651.0,97650.0,0.43575813]
[1732543536540,0.051169,97651.0,97650.0,0.38458913]
[1732543537542,0.203609,97651.0,97650.0,0.38458913]
[1732543539549,0.051169,97651.0,97650.0,0.43575813]
[1732543540043,0.15244,97654.0,97653.0,0.051168]
[1732543540438,0.15244,97654.0,97653.0,0.051568]
[1732543540641,0.0004,97662.0,97660.0,0.051164]
[1732543540642,0.051164,97661.0,97660.0,0.051164]
[1732543540960,0.0004,97662.0,97661.0,0.051164]
[1732543541137,0.0004,97662.0,97661.0,0.083064]
[1732543541337,0.0004,97662.0,97661.0,0.083464]
[1732543541537,0.0004,97662.0,97661.0,0.0004]
[1732543541538,0.051563,97662.0,97661.0,0.0004]
[1732543542338,0.203963,97662.0,97661.0,0.0004]
[1732543544544,0.203963,97662.0,97661.0,0.02455664]
[1732543544752,0.203963,97662.0,97661.0,0.0004]
[1732543545342,0.051563,97662.0,97661.0,0.0004]
[1732543545647,0.203963,97662.0,97661.0,0.0004]
[1732543545835,0.051563,97662.0,97661.0,0.0004]
[1732543546042,0.203963,97662.0,97661.0,0.0004]
[1732543547135,0.203963,97662.0,97661.0,0.051564]
[1732543547641,0.0004,97662.0,97661.0,0.051564]
[1732543548845,0.051563,97662.0,97661.0,0.02421259]
[1732543549047,0.412363,97662.0,97661.0,0.0004]
[1732543549237,0.412363,97662.0,97661.0,1e-06]
[1732543551853,1.019563,97662.0,97661.0,1e-06]
[1732543552545,0.719563,97662.0,97661.0,1e-06]
[1732543554178,1.039563,97662.0,97661.0,1e-06]
[1732543556455,1.2884,97662.0,97629.0,0.3608]
[1732543556758,0.051579,97631.0,97629.0,0.3608]
[1732543556944,0.204019,97631.0,97629.0,0.3608]
[1732543559048,0.204019,97631.0,97630.0,0.02550241]
[1732543559243,0.204019,97631.0,97630.0,0.00153613]
[1732543564260,0.051579,97631.0,97630.0,0.00153613]
[1732543564565,0.198299,97631.0,97630.0,0.00153613]
[1732543564755,0.051579,97631.0,97630.0,0.00153613]
[1732543567052,0.051579,97631.0,97630.0,0.35999613]
[1732543567053,0.0004,97631.0,97630.0,0.35999613]
[1732543567456,0.051176,97638.0,97637.0,0.051176]
[1732543567457,0.197896,97638.0,97637.0,0.051176]
[1732543567662,0.197896,97638.0,97637.0,0.411976]
[1732543567858,0.197896,97638.0,97637.0,0.3612]
[1732543568464,0.051176,97638.0,97637.0,0.3612]
[1732543568665,0.197896,97638.0,97637.0,0.3612]
[1732543570559,0.197896,97638.0,97637.0,0.412376]
[1732543571460,0.197896,97638.0,97637.0,0.3612]
[1732543573063,0.47396001,97639.0,97637.0,0.412376]
[1732543573371,0.14672,97638.0,97637.0,0.411976]
[1732543574060,0.197896,97638.0,97637.0,0.411976]
[1732543575556,0.197896,97638.0,97637.0,0.3608]
[1732543577169,0.051176,97638.0,97637.0,0.411976]
[1732543577368,0.051176,97638.0,97637.0,0.3608]
[1732543580176,0.05118,97630.0,97629.0,0.38449015]
[1732543580374,0.1979,97630.0,97629.0,0.38449015]
[1732543580582,0.1983,97630.0,97629.0,0.38449015]
[1732543585318,0.0004,97630.0,97629.0,0.43567015]
[1732543586584,0.0004,97630.0,97629.0,0.74295015]
[1732543588283,0.051173,97643.0,97642.0,0.051174]
[1732543588485,0.051173,97643.0,97642.0,0.411974]
[1732543589783,0.051169,97651.0,97650.0,0.051168]
[1732543589997,0.197889,97653.0,97652.0,0.051168]
[1732543590693,0.051169,97653.0,97652.0,0.051168]
[1732543590987,0.47392001,97656.0,97655.0,0.051167]
[1732543590988,0.00052001,97656.0,97655.0,0.051167]
[1732543591186,0.1482564,97662.0,97661.0,0.051164]
[1732543591496,0.1994194,97662.0,97661.0,0.051564]
[1732543591690,0.20067566,97662.0,97661.0,0.051564]
[1732543592589,0.20067566,97662.0,97661.0,0.07659914]
[1732543593086,0.20067566,97662.0,97661.0,0.02543514]
[1732543593290,0.05395566,97662.0,97661.0,0.02543514]
[1732543593487,0.05395566,97662.0,97661.0,0.07659914]
[1732543593693,0.05395566,97662.0,97661.0,0.02543514]
[1732543594189,0.19599566,97662.0,97661.0,0.02543514]
[1732543595692,0.19599566,97662.0,97661.0,0.0004]
[1732543599396,0.05395566,97662.0,97661.0,0.0004]
[1732543599585,0.19599566,97662.0,97661.0,0.0004]
[1732543606701,0.86399566,97662.0,97661.0,0.0004]
[1732543606891,0.051172,97645.0,97639.0,0.02486062]
[1732543607093,0.051178,97634.0,97633.0,0.3608]
[1732543607288,0.193218,97634.0,97633.0,0.3608]
[1732543608030,0.19447426,97634.0,97633.0,0.38620695]
[1732543609890,0.05243426,97634.0,97633.0,0.38620695]
[1732543610098,0.19447426,97634.0,97633.0,0.38620695]
[1732543618808,0.05243426,97634.0,97633.0,0.38620695]
[1732543618998,0.19451426,97634.0,97633.0,0.38620695]
[1732543619695,0.00125626,97634.0,97633.0,0.38620695]
[1732543619903,0.00125626,97634.0,97633.0,0.78688695]
[1732543620203,0.00125626,97634.0,97633.0,0.83806495]
[1732543621403,0.051175,97639.0,97633.0,0.78688695]
[1732543621602,0.0004,97640.0,97639.0,0.051175]
[1732543622008,0.0004,97640.0,97639.0,0.358415]
[1732543622808,0.10392081,97644.0,97639.0,0.358415]
[1732543623007,0.10392081,97644.0,97638.0,0.0004]
[1732543623309,0.051575,97639.0,97638.0,0.0004]
[1732543625138,0.03506218,97639.0,97638.0,0.0004]
[1732543625327,0.03506218,97639.0,97638.0,0.051576]
[1732543626735,0.0004,97639.0,97638.0,0.051576]
[1732543628327,0.0004,97639.0,97638.0,0.0004]
[1732543628328,0.051575,97639.0,97638.0,0.0004]
[1732543629442,0.139,97648.0,97641.0,0.051174]
[1732543629760,0.051173,97643.0,97641.0,0.051174]
[1732543630342,0.051174,97642.0,97641.0,0.051174]
[1732543632341,0.051175,97640.0,97638.0,0.0004]
[1732543632540,0.051175,97640.0,97639.0,0.051175]
[1732543632744,0.139,97648.0,97638.0,0.0004]
[1732543632927,0.051172,97645.0,97644.0,0.051172]
[1732543633132,0.190171,97648.0,97647.0,0.0004]
[1732543636093,0.550971,97648.0,97647.0,0.0004]
[1732543639541,0.614771,97648.0,97647.0,0.00012713]
[1732543646525,0.051171,97648.0,97647.0,0.36092713]
[1732543646728,0.190171,97648.0,97647.0,0.36092713]
[1732543647319,0.190171,97648.0,97647.0,0.38618796]
[1732543651228,0.051171,97648.0,97647.0,0.38618796]
[1732543651529,0.190171,97648.0,97647.0,0.38618796]
[1732543653221,0.051171,97648.0,97647.0,0.43735896]
[1732543653627,0.051171,97648.0,97647.0,0.38618796]
[1732543653832,0.051171,97648.0,97647.0,0.36092713]
[1732543654031,0.051171,97648.0,97647.0,0.00012713]
[1732543654232,0.051171,97648.0,97638.0,0.0004]
[1732543654233,0.051175,97639.0,97638.0,0.0004]
[1732543654539,0.661015,97639.0,97638.0,0.0004]
[1732543654726,0.661415,97639.0,97638.0,0.0004]
[1732543663139,0.661415,97639.0,97638.0,1e-06]
[1732543663737,0.999955,97639.0,97638.0,1e-06]
[1732543664042,0.999955,97639.0,97614.0,0.0866192]
[1732543664043,0.051188,97615.0,97614.0,0.0866192]
[1732543664230,0.187628,97615.0,97614.0,0.0253192]
[1732543664435,0.187628,97615.0,97609.0,0.0301]
[1732543664436,0.051188,97614.0,97609.0,0.0301]
[1732543664837,0.051588,97614.0,97609.0,0.0301]
[1732543665066,0.051588,97614.0,97613.0,0.02587673]
[1732543667139,0.358908,97614.0,97613.0,4e-07]
[1732543667336,0.051193,97605.0,97604.0,7.1e-07]
[1732543667538,0.548473,97605.0,97604.0,7.1e-07]
[1732543667930,0.548873,97605.0,97604.0,7.1e-07]
[1732543668444,0.18817767,97605.0,97604.0,7.1e-07]
[1732543669936,0.18817767,97605.0,97600.0,0.02588089]
[1732543669937,0.051195,97601.0,97600.0,0.02588089]
[1732543670137,0.051196,97599.0,97598.0,0.0333]
[1732543670346,0.0512,97592.0,97571.0,0.00153723]
[1732543670643,0.18808,97592.0,97584.0,0.0608]
[1732543671276,0.18808,97592.0,97591.0,0.3864402]
[1732543672444,0.18808,97592.0,97591.0,0.0256402]
[1732543672646,0.18808,97592.0,97584.0,0.0608]
[1732543672949,0.051602,97588.0,97584.0,0.0608]
[1732543673356,0.051602,97588.0,97587.0,0.05590977]
[1732543676251,0.188082,97588.0,97587.0,0.05590977]
[1732543676549,0.188082,97588.0,97587.0,0.10711277]
[1732543676847,0.051197,97598.0,97597.0,0.051197]
[1732543677053,0.051197,97598.0,97597.0,0.411997]
[1732543677249,0.051197,97598.0,97597.0,0.412397]
[1732543677471,0.051197,97598.0,97597.0,0.719797]
[1732543678253,0.051197,97598.0,97597.0,0.412397]
[1732543679948,0.00010467,97605.0,97604.0,0.051194]
[1732543680254,0.00010467,97605.0,97604.0,0.411994]
[1732543680445,0.051186,97619.0,97618.0,0.051186]
[1732543680645,0.051186,97619.0,97618.0,0.411986]
[1732543680869,0.051184,97624.0,97623.0,0.051183]
[1732543681246,0.051184,97624.0,97623.0,0.0004]
[1732543681560,0.0015371,97625.0,97623.0,0.0004]
[1732543681856,0.0527201,97625.0,97624.0,0.051183]
[1732543682064,0.0527201,97625.0,97624.0,0.0333]
[1732543683056,0.0527201,97625.0,97624.0,0.0004]
[1732543683250,0.1892801,97625.0,97624.0,0.0004]
[1732543683689,0.4965601,97625.0,97624.0,1e-06]
[1732543684260,0.84130859,97625.0,97624.0,1e-06]
[1732543686156,0.84130859,97625.0,97601.0,0.00153658]
[1732543686157,0.051195,97602.0,97601.0,0.00153658]
[1732543686358,0.187755,97602.0,97601.0,0.00153658]
[1732543686659,0.051205,97583.0,97582.0,0.0324]
[1732543686854,0.051205,97583.0,97582.0,0.05780896]
[1732543687055,0.052005,97583.0,97582.0,0.05780896]
[1732543688448,0.052005,97583.0,97582.0,0.07830731]
[1732543688859,0.052005,97583.0,97582.0,0.12951231]
[1732543689061,0.052005,97583.0,97582.0,0.07830731]
[1732543690667,0.0305808,97583.0,97582.0,0.07830731]
[1732543692257,0.0305808,97583.0,97582.0,0.04590731]
[1732543692559,0.0305808,97583.0,97582.0,0.02049835]
[1732543693259,0.13656,97587.0,97582.0,0.02049835]
[1732543693655,0.187763,97587.0,97586.0,0.0004]
[1732543696665,0.187763,97587.0,97535.0,0.48377144]
[1732543696666,0.051206,97580.0,97548.0,0.3608]
[1732543696860,0.051212,97569.0,97568.0,0.02679002]
[1732543697164,0.051212,97569.0,97568.0,7.306e-05]
[1732543697165,0.188212,97569.0,97568.0,7.306e-05]
[1732543699156,0.051612,97569.0,97568.0,7.306e-05]
[1732543699360,0.188212,97569.0,97568.0,0.05128506]
[1732543700675,0.00060001,97579.0,97568.0,0.30755306]
[1732543700962,0.04841281,97584.0,97583.0,0.051204]
[1732543701270,0.03122307,97584.0,97583.0,0.051204]
[1732543702863,0.051201,97589.0,97588.0,0.051201]
[1732543703075,0.10075783,97650.0,97599.0,0.051195]
[1732543703076,0.051196,97600.0,97599.0,0.051195]
[1732543703261,0.1366,97606.0,97604.0,0.051193]
[1732543703262,0.051193,97605.0,97604.0,0.051193]
[1732543703568,0.051193,97605.0,97604.0,0.051593]
[1732543705060,0.051193,97605.0,97604.0,0.07857073]
[1732543705767,0.051193,97605.0,97604.0,0.02737773]
[1732543706573,0.051193,97605.0,97604.0,0.07857173]
[1732543707059,0.051193,97605.0,97604.0,0.02737773]
[1732543711965,0.051189,97614.0,97604.0,0.33473773]
[1732543712266,0.051178,97634.0,97613.0,0.3612]
[1732543712267,0.051186,97620.0,97613.0,0.3612]
[1732543712461,0.1366,97630.0,97624.0,0.3608]
[1732543712662,0.05272021,97625.0,97624.0,0.3608]
[1732543712972,0.05272021,97625.0,97624.0,0.3612]
[1732543716268,0.05272021,97625.0,97624.0,0.38804204]
[1732543721478,0.1396,97634.0,97624.0,0.38804204]
[1732543721676,0.1396,97634.0,97632.0,0.3608]
[1732543721875,0.051178,97633.0,97632.0,0.3608]
[1732543731384,0.051178,97633.0,97632.0,0.411979]
[1732543732193,0.051178,97633.0,97632.0,0.43247057]
[1732543733394,0.02246,97634.0,97632.0,0.38129157]
[1732543733599,0.02246,97634.0,97633.0,0.051178]
[1732543733799,0.02246,97634.0,97633.0,0.113278]
[1732543734101,0.073638,97634.0,97633.0,0.113278]
[1732543734303,0.073638,97634.0,97633.0,0.0621]
[1732543734599,0.02246,97634.0,97633.0,0.113278]
[1732543735198,0.13956,97649.0,97633.0,0.0621]
[1732543735499,0.051168,97654.0,97653.0,0.051168]
[1732543735706,0.02983457,97654.0,97653.0,0.051168]
[1732543735909,0.051166,97658.0,97657.0,0.051165]
[1732543736092,0.02133143,97658.0,97657.0,0.411965]
[1732543736403,0.0526995,97663.0,97662.0,0.051163]
[1732543736598,0.0015365,97663.0,97662.0,0.411963]
[1732543736807,0.0015365,97663.0,97662.0,0.412363]
[1732543737004,0.0325,97676.0,97662.0,0.3612]
[1732543737196,0.3109229,97700.0,97677.0,0.051155]
[1732543737197,0.051154,97679.0,97677.0,0.051155]
[1732543737401,0.051155,97678.0,97677.0,0.051155]
[1732543737707,0.051156,97676.0,97675.0,0.3612]
[1732543738108,0.051556,97676.0,97675.0,0.3612]
[1732543738604,0.051556,97676.0,97675.0,0.412356]
[1732543738998,0.051556,97676.0,97675.0,0.3885409]
[1732543740300,0.01000484,97676.0,97675.0,0.3885409]
[1732543740498,0.051156,97676.0,97675.0,0.3885409]
[1732543741001,0.051156,97676.0,97650.0,0.07165928]
[1732543741002,0.051165,97658.0,97655.0,0.3608]
[1732543741209,0.051165,97658.0,97657.0,0.02866108]
[1732543741503,0.051565,97658.0,97657.0,0.0015357]
[1732543742306,0.191085,97658.0,97657.0,0.0015357]
[1732543743308,0.051169,97651.0,97650.0,0.02665548]
[1732543743497,0.411969,97651.0,97650.0,0.02665548]
[1732543743695,0.412369,97651.0,97650.0,0.02665548]
[1732543744109,0.475669,97651.0,97650.0,0.02665548]
[1732543744308,0.051174,97641.0,97640.0,0.00011198]
[1732543744508,0.189774,97641.0,97640.0,0.00011198]
[1732543744807,0.190174,97641.0,97640.0,0.00011198]
[1732543745410,0.051574,97641.0,97640.0,0.0264157]
[1732543745718,0.051574,97641.0,97624.0,0.0004]
[1732543745719,0.051183,97625.0,97624.0,0.0004]
[1732543746097,0.051583,97625.0,97624.0,0.0004]
[1732543746600,0.05168096,97625.0,97624.0,0.0004]
[1732543747416,0.05168096,97625.0,97624.0,0.02658826]
[1732543747601,0.05168096,97625.0,97624.0,0.0004]
[1732543753339,0.00049796,97625.0,97624.0,0.0004]
[1732543754440,0.06329796,97625.0,97624.0,0.0004]
[1732543755911,0.11448096,97625.0,97624.0,0.0004]
[1732543756911,0.25312096,97625.0,97624.0,0.0004]
[1732543758516,0.08208096,97625.0,97624.0,0.0004]
[1732543758717,0.05168096,97625.0,97624.0,0.0004]
[1732543758906,0.051181,97629.0,97624.0,0.0004]
[1732543759218,0.13864,97633.0,97628.0,0.0004]
[1732543759520,0.18982,97633.0,97632.0,0.411979]
[1732543759708,0.18982,97633.0,97632.0,0.3608]
[1732543760213,0.05118,97633.0,97632.0,0.3608]
[1732543760608,0.05118,97633.0,97632.0,0.411979]
[1732543761622,0.13864,97639.0,97632.0,0.3608]
[1732543761807,0.13864,97639.0,97637.0,0.051176]
[1732543762117,0.189815,97639.0,97638.0,0.0004]
[1732543762504,0.051175,97639.0,97638.0,0.051576]
[1732543762709,0.00153672,97648.0,97638.0,0.0004]
[1732543762909,0.051173,97644.0,97643.0,0.051173]
[1732543763113,0.00153672,97648.0,97647.0,0.051171]
[1732543763710,0.05270772,97648.0,97647.0,0.051171]
[1732543765114,0.051171,97648.0,97647.0,0.051171]
[1732543766015,0.0655,97671.0,97653.0,0.051167]
[1732543766016,0.051163,97663.0,97653.0,0.051167]
[1732543766213,0.051163,97663.0,97655.0,0.411967]
[1732543766417,0.13864,97664.0,97655.0,0.411967]
[1732543766418,0.051165,97659.0,97655.0,0.411967]
[1732543766612,0.13864,97664.0,97655.0,0.411967]
[1732543766823,0.13864,97668.0,97663.0,0.3608]
[1732543767020,0.051159,97670.0,97663.0,0.3608]
[1732543767219,0.47392001,97685.0,97666.0,0.3608]
[1732543767220,0.051153,97681.0,97666.0,0.3608]
[1732543767414,0.01408558,97681.0,97680.0,0.3608]
[1732543767623,0.051148,97691.0,97680.0,0.3612]
[1732543767925,0.051153,97681.0,97680.0,0.3608]
[1732543768313,0.13864,97690.0,97680.0,0.3608]
[1732543768517,0.05115,97688.0,97681.0,0.051153]
[1732543768720,0.05115,97688.0,97682.0,0.051153]
[1732543768919,0.05115,97688.0,97680.0,0.36192]
[1732543768920,0.05115,97688.0,97680.0,0.3608]
[1732543769124,0.1,97700.0,97684.0,0.051152]
[1732543769318,0.051151,97686.0,97684.0,0.051152]
[1732543769717,0.13864,97699.0,97680.0,0.38593419]
[1732543769916,0.051147,97694.0,97692.0,0.3608]
[1732543772820,0.1,97700.0,97693.0,0.34008]
[1732543773021,0.1,97700.0,97699.0,0.411944]
[1732543773623,0.1,97700.0,97699.0,0.719024]
[1732543773832,0.00153571,97718.0,97709.0,0.051138]
[1732543773833,0.051138,97711.0,97709.0,0.051138]
[1732543774028,0.051138,97711.0,97710.0,0.3608]
[1732543774325,0.051138,97711.0,97710.0,0.3612]
[1732543775128,0.051135,97716.0,97711.0,0.051138]
[1732543775429,0.051137,97712.0,97710.0,0.3608]
[1732543775725,0.051137,97712.0,97710.0,0.3860774]
[1732543775931,0.0004,97711.0,97710.0,0.3860774]
[1732543778124,0.00123,97715.0,97710.0,0.3860774]
[1732543778325,0.051137,97712.0,97710.0,0.3860774]
[1732543780528,0.051138,97711.0,97710.0,0.3860774]
[1732543782931,0.051138,97711.0,97710.0,0.4372154]
[1732543783124,0.00123,97715.0,97710.0,0.4372154]
[1732543783125,0.051136,97714.0,97711.0,0.051137]
[1732543783330,0.051136,97714.0,97713.0,0.051136]
[1732543783625,0.051136,97714.0,97713.0,0.051936]
[1732543784426,0.051136,97714.0,97713.0,0.0008]
[1732543785017,0.081236,97714.0,97713.0,0.0008]
[1732543785223,0.114236,97714.0,97713.0,0.0008]
[1732543786127,0.147136,97714.0,97713.0,0.0008]
[1732543789229,0.147136,97714.0,97699.0,0.43362306]
[1732543789230,0.051143,97700.0,97699.0,0.38247906]
[1732543789457,0.051143,97700.0,97683.0,0.38127906]
[1732543789458,0.051152,97684.0,97683.0,0.38127906]
[1732543789642,0.030672,97684.0,97683.0,0.02047906]
[1732543789825,0.030672,97684.0,97673.0,0.36090396]
[1732543789826,0.051157,97674.0,97673.0,0.00010396]
[1732543790238,0.051557,97674.0,97673.0,0.00010396]
[1732543790840,0.412357,97674.0,97673.0,0.00010396]
[1732543791538,0.051557,97674.0,97673.0,0.00010396]
[1732543791729,0.412357,97674.0,97673.0,0.00010396]
[1732543792033,0.051557,97674.0,97673.0,0.00010396]
[1732543795335,0.051557,97674.0,97673.0,0.05126096]
[1732543795538,0.0004,97674.0,97673.0,0.05126096]
[1732543796542,0.051557,97674.0,97673.0,0.05126096]
[1732543797144,0.051557,97674.0,97673.0,0.00010396]
[1732543799455,0.0004,97674.0,97673.0,0.00010396]
[1732543799751,0.0004,97674.0,97673.0,0.05126096]
[1732543800452,0.0004,97674.0,97673.0,0.00010396]
[1732543800453,0.051557,97674.0,97673.0,0.00010396]
[1732543803753,0.188037,97674.0,97673.0,0.00010396]
[1732543805249,0.189267,97674.0,97673.0,0.00010396]
[1732543805756,0.189267,97674.0,97673.0,0.05126096]
[1732543806357,0.189267,97674.0,97673.0,0.00010396]
[1732543810568,0.413587,97674.0,97673.0,0.00010396]
[1732543810749,0.857227,97674.0,97673.0,0.00010396]
[1732543811462,1.177227,97674.0,97673.0,0.00010396]
[1732543812235,0.051159,97670.0,97669.0,0.0004]
[1732543812682,0.051559,97670.0,97669.0,0.0004]
[1732543812888,0.371559,97670.0,97669.0,0.0004]
[1732543813189,0.37164577,97670.0,97669.0,0.0004]
[1732543814579,0.73244577,97670.0,97669.0,0.0004]
[1732543814789,0.18816577,97670.0,97669.0,0.0004]
[1732543815383,0.051171,97648.0,97647.0,0.00153598]
[1732543815581,0.187691,97648.0,97647.0,0.00153598]
[1732543815784,0.188091,97648.0,97647.0,0.00153598]
[1732543816389,0.188091,97648.0,97647.0,0.02636788]
[1732543816593,0.188091,97648.0,97647.0,0.00153598]
[1732543818193,0.051175,97639.0,97638.0,0.05610167]
[1732543818886,0.051175,97639.0,97638.0,0.10727767]
[1732543818887,0.051575,97639.0,97638.0,0.10727767]
[1732543819287,0.051575,97639.0,97638.0,0.05610167]
[1732543820798,0.188095,97639.0,97638.0,0.02480167]
[1732543821006,0.051177,97635.0,97634.0,0.00112]
[1732543821184,0.411977,97635.0,97634.0,0.00112]
[1732543821388,0.051177,97635.0,97633.0,0.0004]
[1732543821584,0.051577,97635.0,97633.0,0.0004]
[1732543821886,0.0004,97634.0,97633.0,0.0004]
[1732543822086,0.051181,97628.0,97607.0,0.3608]
[1732543822282,0.548501,97628.0,97607.0,0.3608]
[1732543822681,0.548901,97628.0,97607.0,0.3608]
[1732543822879,0.550131,97628.0,97607.0,0.3608]
[1732543823481,0.550131,97628.0,97619.0,0.02511806]
[1732543823977,0.550131,97628.0,97605.0,0.0957]
[1732543825565,0.550131,97628.0,97627.0,1.2e-07]
[1732543829766,0.413611,97628.0,97627.0,1.2e-07]
[1732543829991,0.550171,97628.0,97627.0,1.2e-07]
[1732543832762,0.80627,97628.0,97605.0,0.0957]
[1732543832976,0.80627,97628.0,97603.0,0.00153675]
[1732543832977,0.051194,97604.0,97603.0,0.00153675]
[1732543833284,0.051195,97601.0,97600.0,0.1]
[1732543833468,0.411995,97601.0,97600.0,0.1]
[1732543833773,0.051203,97587.0,97586.0,0.3608]
[1732543834276,0.051603,97587.0,97586.0,0.3608]
[1732543834581,0.051603,97587.0,97586.0,0.38580526]
[1732543835666,0.051603,97587.0,97586.0,0.02500526]
[1732543835869,0.051204,97585.0,97584.0,0.0318]
[1732543836064,0.051206,97581.0,97580.0,0.0322]
[1732543836572,0.051606,97581.0,97580.0,0.0322]
[1732543836776,0.051606,97581.0,97580.0,0.05681423]
[1732543839869,0.051211,97570.0,97569.0,0.0316]
[1732543840266,0.051611,97570.0,97569.0,0.0316]
[1732543840470,0.051611,97570.0,97569.0,0.05694552]
[1732543840768,0.0004,97570.0,97569.0,0.10815752]
[1732543841281,0.051611,97570.0,97569.0,0.41563752]
[1732543841579,0.1366,97581.0,97576.0,0.051208]
[1732543841764,0.1366,97584.0,97580.0,0.3608]
[1732543841967,0.1366,97584.0,97580.0,0.3612]
[1732543842169,0.051206,97581.0,97580.0,0.3612]
[1732543842370,0.051206,97581.0,97580.0,0.0004]
[1732543842963,0.187806,97581.0,97580.0,0.0004]
[1732543844476,0.051206,97581.0,97580.0,0.0004]
[1732543844774,0.1366,97585.0,97580.0,0.0004]
[1732543844969,0.1366,97585.0,97584.0,0.3608]
[1732543845169,0.1366,97585.0,97584.0,0.3612]
[1732543845774,0.1366,97585.0,97584.0,0.0004]
[1732543847480,0.051206,97581.0,97580.0,0.0004]
[1732543847680,0.412006,97581.0,97580.0,0.0004]
[1732543847973,0.412406,97581.0,97580.0,0.0004]
[1732543849283,0.732406,97581.0,97580.0,0.0004]
[1732543851374,0.412406,97581.0,97580.0,6.75e-05]
[1732543852475,0.36130783,97581.0,97558.0,9.74e-05]
[1732543852685,0.051217,97559.0,97558.0,9.74e-05]
[1732543852975,0.052017,97559.0,97558.0,9.74e-05]
[1732543853378,0.052017,97559.0,97558.0,0.02515768]
[1732543853580,0.053247,97559.0,97558.0,9.74e-05]
[1732543856294,0.00203,97559.0,97558.0,9.74e-05]
[1732543857179,0.13664,97576.0,97565.0,0.051214]
[1732543857388,0.051214,97566.0,97565.0,0.051214]
[1732543857681,0.051214,97566.0,97565.0,0.412014]
[1732543857880,0.051214,97566.0,97565.0,0.3608]
[1732543858983,0.00010783,97581.0,97565.0,0.3608]
[1732543859289,0.051209,97575.0,97574.0,0.412009]